[Event "5th EKA IIFL Investment 2019"]
[Site "Mumbai"]
[Date "2020.01.04"]
[Round "6.38"]
[White "Bharat Kumar Reddy Poluri"]
[Black "Utsab Chatterjee"]
[Result "1/2-1/2"]
[ECO "B91"]
[WhiteElo "2337"]
[BlackElo "2200"]
[Annotator "NA"]
[PlyCount "80"]
[EventDate "2019.12.30"]
[EventType "swiss"]
[EventCountry "IND"]
[SourceTitle "playchess.com"]
[Source "ChessBase"]
[SourceQuality "1"]
[TimeControl "40/5400+30:1800+30"]

1. e4 {[%emt 0:00:00]} c5 {[%emt 0:00:00]} 2. Nf3 {[%emt 0:00:00]} d6 {[%emt 0:00:17]} 3. d4 {[%emt 0:00:29]} cxd4 {[%emt 0:00:22]} 4. Nxd4 {[%emt 0:00:06]} Nf6 {[%emt 0:00:20]} 5. Nc3 {[%emt 0:00:02]} a6 {[%emt 0:00:07]} 6. g3 {[%emt 0:01:59]} e6 {[%emt 0:06:01]} 7. Bg2 {[%emt 0:00:09]} Be7 {[%emt 0:00:07]} 8. O-O {[%emt 0:00:06]} O-O {[%emt 0:00:04]} 9. f4 {[%emt 0:02:24]} Qc7 {[%emt 0:00:10]} 10. g4 {[%emt 0:02:32]} d5 {[%emt 0:08:27] B80: Sicilian Scheveningen: 6 g3 and 6 Be3, including English Attack} (10... Nc6 11. g5 Nxd4 12. Qxd4 d5 13. Be3 Nxe4 14. Nxe4 dxe4 15. Qxe4 Rb8 16. Rad1 Bc5 17. Bxc5 Qxc5+ 18. Qd4 Qxd4+ 19. Rxd4 {1-0 (49) Guseinov,G (2664)-Valsecchi,A (2497) Skopje 2018}) 11. e5 {[%emt 0:00:51]} Nfd7 {[%emt 0:00:46]} 12. Kh1 {[%emt 0:02:58]} Nc6 {[%emt 0:00:13]} 13. Be3 {[%emt 0:01:08]} Nxd4 {[%emt 0:06:30]} 14. Bxd4 {[%emt 0:00:13]} b5 $146 {[%emt 0:00:46]} ({Predecessor:} 14... Bc5 15. Rf3 f6 16. exf6 Nxf6 17. g5 Nd7 18. Qd2 Bxd4 19. Qxd4 {1-0 (37) Pilnik,H-Rabar,B Gothenburg 1955}) 15. a3 {[%emt 0:00:58]} Bb7 {[%emt 0:00:38]} 16. Qe2 {[%emt 0:01:14]} Rae8 {[%emt 0:01:08]} 17. g5 {[%emt 0:04:10]} Bc5 {[%emt 0:05:44]} 18. Rad1 {[%emt 0:00:35]} Bxd4 {[%emt 0:00:33]} 19. Rxd4 {[%emt 0:00:03]} Nb6 {[%emt 0:03:07]} 20. Rf3 {[%emt 0:01:14]} f6 $11 {[%emt 0:02:25]} 21. gxf6 {[%emt 0:01:12]} gxf6 {[%emt 0:00:05]} 22. exf6 {[%emt 0:03:25]} Rxf6 {[%emt 0:00:39]} 23. f5 {[%emt 0:01:49]} Kh8 {[%emt 0:10:29]} 24. fxe6 {[%emt 0:07:27]} Rexe6 {[%emt 0:00:12]} 25. Rxf6 {[%emt 0:02:34]} Rxf6 {[%emt 0:01:51]} 26. Qe8+ {[%emt 0:15:19]} Kg7 {[%emt 0:00:11]} 27. Ne2 {[%emt 0:01:53]} Bc6 {[%emt 0:04:01]} 28. Qh5 {[%emt 0:08:24]} Kh8 {[%emt 0:12:18]} 29. Qg5 {[%emt 0:04:58]} Qg7 {[%emt 0:00:16]} 30. Qh4 {[%emt 0:01:46]} Nc4 {[%emt 0:08:06]} 31. Rg4 {[%emt 0:05:07]} Rg6 {[%emt 0:05:12]} 32. Rxg6 {[%emt 0:01:31]} Qxg6 {[%emt 0:00:01]} 33. Nf4 {[%emt 0:03:36]} Qd6 {[%emt 0:00:34]} 34. Qg5 {[%emt 0:03:40]} d4 {[%emt 0:05:53]} 35. Nh5 {[%emt 0:00:58]} Bxg2+ {[%emt 0:00:15]} 36. Qxg2 {[%emt 0:01:38]} Qf8 {[%emt 0:00:10]} 37. Qe2 {[%emt 0:09:59]} Qa8+ {[%emt 0:00:17]} 38. Kg1 {[%emt 0:00:11]} Qg8+ {[%emt 0:00:05]} 39. Kh1 {[%emt 0:00:08]} Qa8+ {[%emt 0:00:03]} 40. Kg1 {[%emt 0:00:00]} Qg8+ {[%emt 0:00:00]} 1/2-1/2

[Event "5th EKA IIFL Investment 2019"]
[Site "Mumbai"]
[Date "2020.01.04"]
[Round "6.40"]
[White "Rohith, Krishna S"]
[Black "Pranav, Shetty"]
[Result "1/2-1/2"]
[ECO "E62"]
[WhiteElo "2306"]
[BlackElo "2162"]
[Annotator "ChessBase"]
[PlyCount "112"]
[EventDate "2019.12.30"]
[EventType "swiss"]
[EventCountry "IND"]
[SourceTitle "playchess.com"]
[Source "ChessBase"]
[SourceQuality "1"]
[TimeControl "40/5400+30:1800+30"]

1. d4 {[%emt 0:03:39]} Nf6 {[%emt 0:00:00]} 2. c4 {[%emt 0:00:06]} g6 {[%emt 0:00:12]} 3. Nc3 {[%emt 0:00:05]} Bg7 {[%emt 0:00:07]} 4. Nf3 {[%emt 0:00:09]} O-O {[%emt 0:00:08]} 5. g3 {[%emt 0:00:06]} d6 {[%emt 0:00:13]} 6. Bg2 {[%emt 0:00:07]} Nc6 {[%emt 0:00:13]} 7. O-O {[%emt 0:00:10]} Bf5 {[%emt 0:00:11]} 8. d5 {[%emt 0:01:31]} Na5 {[%emt 0:00:06]} 9. Nd2 {[%emt 0:00:06]} c5 {[%emt 0:00:54]} 10. e4 {[%emt 0:00:06]} Bd7 {[%emt 0:00:05]} 11. Qc2 {[%emt 0:00:06]} e5 {[%emt 0:02:01]} 12. a3 {[%emt 0:07:34]} b6 {[%emt 0:00:27]} 13. b3 {[%emt 0:00:42]} Ng4 {[%emt 0:02:27]} 14. h3 {[%emt 0:03:56]} Nh6 {[%emt 0:00:08]} 15. Bb2 {[%emt 0:03:05]} f5 {[%emt 0:00:14]} 16. exf5 {[%emt 0:00:50]} gxf5 {[%emt 0:05:51]} 17. f4 {[%emt 0:00:10]} Qe8 {[%emt 0:22:15]} 18. Rae1 {[%emt 0:08:21]} Qg6 {[%emt 0:01:29]} 19. Ne2 {[%emt 0:09:26]} Rae8 {[%emt 0:03:31]} 20. Nf3 {[%emt 0:14:57]} Bf6 {[%emt 0:03:12]} 21. Bc3 {[%emt 0:04:36]} Qg7 {[%emt 0:06:41]} 22. Qb2 {[%emt 0:03:22]} exf4 {[%emt 0:01:11]} 23. Bxf6 {[%emt 0:00:25]} Qxf6 {[%emt 0:00:23]} 24. Qxf6 {[%emt 0:00:29]} Rxf6 {[%emt 0:00:01]} 25. Nxf4 {[%emt 0:00:10]} Nxb3 {[%emt 0:06:00]} 26. Rxe8+ {[%emt 0:00:10]} Bxe8 {[%emt 0:00:02]} 27. Re1 {[%emt 0:00:09]} Bd7 {[%emt 0:08:57]} 28. Nh5 {[%emt 0:01:35]} Rf8 {[%emt 0:08:20]} 29. Re7 {[%emt 0:00:23]} Be8 {[%emt 0:00:02]} 30. Nf4 {[%emt 0:01:08]} b5 {[%emt 0:09:43]} 31. Bf1 {[%emt 0:04:54]} b4 {[%emt 0:04:36]} 32. Rxa7 {[%emt 0:00:58]} Rf7 {[%emt 0:05:02]} 33. Ra8 {[%emt 0:08:09]} bxa3 {[%emt 0:02:30]} 34. Rxa3 {[%emt 0:05:24]} Rb7 {[%emt 0:00:02]} 35. Bd3 {[%emt 0:03:45]} Nc1 {[%emt 0:01:50]} 36. Bf1 {[%emt 0:06:14]} Rb3 {[%emt 0:01:44]} 37. Rxb3 {[%emt 0:01:28]} Nxb3 {[%emt 0:00:01]} 38. Kf2 {[%emt 0:00:01]} Bd7 {[%emt 0:05:28]} 39. Ke3 {[%emt 0:00:28]} Kg7 {[%emt 0:00:46]} 40. Bd3 {[%emt 0:00:00]} Nf7 {[%emt 0:00:00]} 41. Nh5+ {[%emt 0:02:28]} Kg6 {[%emt 0:17:22]} 42. g4 {[%emt 0:02:11]} Nd4 {[%emt 0:00:26]} 43. Nf4+ {[%emt 0:07:42]} Kh6 {[%emt 0:11:32]} 44. Nxd4 {[%emt 0:01:06]} cxd4+ {[%emt 0:00:02]} 45. Kxd4 {[%emt 0:00:07]} fxg4 {[%emt 0:00:02]} 46. hxg4 {[%emt 0:00:04]} Bxg4 {[%emt 0:00:02]} 47. Ne6 {[%emt 0:00:08]} Ng5 {[%emt 0:03:23]} 48. Nxg5 {[%emt 0:00:45]} Kxg5 {[%emt 0:00:01]} 49. Bxh7 {[%emt 0:00:15]} Kf6 {[%emt 0:00:01]} 50. Kc3 {[%emt 0:00:25]} Ke7 {[%emt 0:00:06]} 51. Kb4 {[%emt 0:00:04]} Kd7 {[%emt 0:00:02]} 52. Ka5 {[%emt 0:00:07]} Kc7 {[%emt 0:00:04]} 53. Bd3 {[%emt 0:00:06]} Bd7 {[%emt 0:00:04]} 54. Kb4 {[%emt 0:00:07]} Bh3 {[%emt 0:00:07]} 55. c5 {[%emt 0:00:04]} dxc5+ {[%emt 0:00:03]} 56. Kxc5 {[%emt 0:00:04]} Kd8 {[%emt 0:00:02]} 1/2-1/2

[Event "5th EKA IIFL Investment 2019"]
[Site "Mumbai"]
[Date "2020.01.04"]
[Round "6.42"]
[White "Priyanka, K."]
[Black "Vantika Agrawal"]
[Result "0-1"]
[ECO "B92"]
[WhiteElo "2124"]
[BlackElo "2287"]
[Annotator "ChessBase"]
[PlyCount "180"]
[EventDate "2019.12.30"]
[EventType "swiss"]
[EventCountry "IND"]
[SourceTitle "playchess.com"]
[Source "ChessBase"]
[SourceQuality "1"]
[TimeControl "40/5400+30:1800+30"]

1. e4 {[%emt 0:00:00]} c5 {[%emt 0:00:00]} 2. Nf3 {[%emt 0:00:01]} d6 {[%emt 0:00:11]} 3. d4 {[%emt 0:00:11]} cxd4 {[%emt 0:00:08]} 4. Nxd4 {[%emt 0:00:06]} Nf6 {[%emt 0:00:07]} 5. Nc3 {[%emt 0:00:06]} a6 {[%emt 0:00:04]} 6. Be2 {[%emt 0:01:49]} e5 {[%emt 0:00:16]} 7. Nb3 {[%emt 0:00:24]} Be7 {[%emt 0:01:07]} 8. O-O {[%emt 0:00:22]} O-O {[%emt 0:01:26]} 9. Re1 {[%emt 0:01:09]} Be6 {[%emt 0:01:29]} 10. Bf3 {[%emt 0:00:27]} Qc7 {[%emt 0:09:29]} 11. a4 {[%emt 0:02:40]} Nc6 {[%emt 0:07:37]} 12. Be3 {[%emt 0:16:40]} Rac8 {[%emt 0:15:18]} 13. Qd2 {[%emt 0:07:54]} Nb4 {[%emt 0:10:00]} 14. a5 {[%emt 0:03:29]} Rfe8 {[%emt 0:08:18]} 15. Ra4 {[%emt 0:13:34]} d5 {[%emt 0:08:21]} 16. exd5 {[%emt 0:03:23]} Bf5 {[%emt 0:01:29]} 17. Bb6 {[%emt 0:11:01]} Qd7 {[%emt 0:03:13]} 18. d6 {[%emt 0:11:56]} Bxd6 {[%emt 0:16:44]} 19. Rd1 {[%emt 0:05:20]} e4 {[%emt 0:02:43]} 20. Qxd6 {[%emt 0:05:08]} Qxd6 {[%emt 0:00:29]} 21. Rxd6 {[%emt 0:00:06]} exf3 {[%emt 0:00:06]} 22. gxf3 {[%emt 0:01:43]} Nxc2 {[%emt 0:02:34]} 23. Nd4 {[%emt 0:01:47]} Nxd4 {[%emt 0:01:04]} 24. Raxd4 {[%emt 0:00:10]} Bh3 {[%emt 0:01:39]} 25. Rd8 {[%emt 0:01:27]} Rcxd8 {[%emt 0:00:21]} 26. Rxd8 {[%emt 0:00:08]} Rxd8 {[%emt 0:00:37]} 27. Bxd8 {[%emt 0:00:06]} Nd7 {[%emt 0:01:43]} 28. Bc7 {[%emt 0:03:54]} Nc5 {[%emt 0:01:28]} 29. b4 {[%emt 0:01:10]} Ne6 {[%emt 0:00:46]} 30. Bd6 {[%emt 0:00:30]} Nd4 {[%emt 0:00:55]} 31. f4 {[%emt 0:00:17]} Nf3+ {[%emt 0:02:23]} 32. Kh1 {[%emt 0:00:05]} h5 {[%emt 0:01:37]} 33. Ne4 {[%emt 0:01:09]} f6 {[%emt 0:01:18]} 34. Nc5 {[%emt 0:00:47]} h4 {[%emt 0:00:40]} 35. Nb3 {[%emt 0:07:14]} Bf1 {[%emt 0:00:46]} 36. h3 {[%emt 0:00:13]} Bxh3 {[%emt 0:00:44]} 37. Bc5 {[%emt 0:00:21]} Bf1 {[%emt 0:00:47]} 38. Nd4 {[%emt 0:00:15]} Nd2 {[%emt 0:00:27]} 39. Kh2 {[%emt 0:01:53]} Kf7 {[%emt 0:00:28]} 40. f5 {[%emt 0:00:00]} h3 {[%emt 0:00:00]} 41. Bd6 {[%emt 0:04:11]} Ne4 {[%emt 0:10:09]} 42. Bc7 {[%emt 0:05:44]} Bg2 {[%emt 0:06:47]} 43. Kg1 {[%emt 0:00:29]} Nd2 {[%emt 0:01:30]} 44. Kh2 {[%emt 0:01:13]} g6 {[%emt 0:01:47]} 45. fxg6+ {[%emt 0:02:22]} Kxg6 {[%emt 0:00:07]} 46. Bf4 {[%emt 0:00:59]} Ne4 {[%emt 0:01:24]} 47. f3 {[%emt 0:02:08]} Nf2 {[%emt 0:01:09]} 48. Kg3 {[%emt 0:01:59]} Nd3 {[%emt 0:00:35]} 49. Bd2 {[%emt 0:01:29]} f5 {[%emt 0:01:58]} 50. Ne6 {[%emt 0:02:31]} Ne5 {[%emt 0:01:02]} 51. Nf4+ {[%emt 0:08:47]} Kf7 {[%emt 0:00:33]} 52. Nxg2 {[%emt 0:00:29]} hxg2 {[%emt 0:00:07]} 53. Kxg2 {[%emt 0:00:05]} Ke6 {[%emt 0:00:52]} 54. Kg3 {[%emt 0:00:42]} Ng6 {[%emt 0:00:44]} 55. Bc3 {[%emt 0:02:21]} Kd5 {[%emt 0:00:39]} 56. Be1 {[%emt 0:00:23]} Kc4 {[%emt 0:01:43]} 57. Bd2 {[%emt 0:00:07]} Kb3 {[%emt 0:01:29]} 58. f4 {[%emt 0:00:37]} Kc4 {[%emt 0:00:27]} 59. Be1 {[%emt 0:00:39]} Kd3 {[%emt 0:00:38]} 60. Kf3 {[%emt 0:02:46]} Nf8 {[%emt 0:02:09]} 61. Bh4 {[%emt 0:00:29]} Ne6 {[%emt 0:00:10]} 62. Be7 {[%emt 0:00:28]} Nd4+ {[%emt 0:00:28]} 63. Kf2 {[%emt 0:00:30]} Ke4 {[%emt 0:04:40]} 64. Bd6 {[%emt 0:00:11]} Kd5 {[%emt 0:00:59]} 65. Be7 {[%emt 0:00:50]} Nc6 66. Bc5 {[%emt 0:01:02]} Ke4 {[%emt 0:01:08]} 67. Kg3 {[%emt 0:00:21]} Nd4 {[%emt 0:00:17]} 68. Kf2 {[%emt 0:00:34]} Ne6 {[%emt 0:00:08]} 69. Bd6 {[%emt 0:00:16]} Nxf4 {[%emt 0:00:07]} 70. Kg3 {[%emt 0:00:22]} Nd3 {[%emt 0:00:14]} 71. Kg2 {[%emt 0:00:14]} f4 {[%emt 0:00:44]} 72. Kf1 {[%emt 0:00:16]} f3 {[%emt 0:00:13]} 73. Be7 {[%emt 0:00:13]} Kd4 {[%emt 0:00:32]} 74. Bf8 {[%emt 0:00:32]} Kc4 {[%emt 0:00:05]} 75. Bd6 {[%emt 0:00:08]} Kb5 {[%emt 0:00:23]} 76. Bc7 {[%emt 0:00:29]} Kxb4 {[%emt 0:00:14]} 77. Kg1 {[%emt 0:00:30]} Kb5 {[%emt 0:00:30]} 78. Kf1 {[%emt 0:00:11]} Kb4 {[%emt 0:02:09]} 79. Kg1 {[%emt 0:00:08]} Nb2 {[%emt 0:00:23]} 80. Kf2 {[%emt 0:00:25]} Nc4 {[%emt 0:00:03]} 81. Kxf3 {[%emt 0:00:14]} Nxa5 {[%emt 0:00:09]} 82. Ke3 {[%emt 0:00:20]} Nc6 {[%emt 0:01:02]} 83. Kd2 {[%emt 0:00:19]} Kb3 {[%emt 0:00:22]} 84. Kc1 {[%emt 0:00:21]} a5 {[%emt 0:00:25]} 85. Kb1 {[%emt 0:00:22]} b5 {[%emt 0:00:05]} 86. Bd6 {[%emt 0:00:11]} b4 {[%emt 0:00:11]} 87. Bf8 {[%emt 0:00:13]} a4 {[%emt 0:00:21]} 88. Bg7 {[%emt 0:00:08]} Na5 {[%emt 0:00:18]} 89. Ka1 {[%emt 0:00:27]} Nc4 {[%emt 0:00:04]} 90. Bd4 {[%emt 0:00:12]} Na3 {[%emt 0:00:36]} 0-1

[Event "5th EKA IIFL Investment 2019"]
[Site "Mumbai"]
[Date "2020.01.04"]
[Round "6.43"]
[White "Dere Pushkar"]
[Black "Mithil, Ajgaonkar"]
[Result "1-0"]
[ECO "B14"]
[WhiteElo "2061"]
[BlackElo "2278"]
[Annotator "NA"]
[PlyCount "85"]
[EventDate "2019.12.30"]
[EventType "swiss"]
[EventCountry "IND"]
[SourceTitle "playchess.com"]
[Source "ChessBase"]
[SourceQuality "1"]
[TimeControl "40/5400+30:1800+30"]

1. e4 {[%emt 0:00:00]} c6 {[%emt 0:00:00]} 2. d4 {[%emt 0:00:01]} d5 {[%emt 0:00:00]} 3. exd5 {[%emt 0:00:17]} cxd5 {[%emt 0:00:00]} 4. c4 {[%emt 0:00:08]} Nf6 {[%emt 0:00:02]} 5. Nc3 {[%emt 0:00:21]} e6 {[%emt 0:00:05]} 6. Nf3 {[%emt 0:00:26]} Be7 {[%emt 0:00:02]} 7. cxd5 {[%emt 0:00:51]} Nxd5 {[%emt 0:00:05]} 8. Bd3 {[%emt 0:01:00]} O-O {[%emt 0:00:07]} 9. O-O {[%emt 0:00:59]} Nc6 {[%emt 0:00:03]} 10. a3 {[%emt 0:00:35]} Bf6 {[%emt 0:01:25]} 11. Re1 {[%emt 0:00:18]} g6 {[%emt 0:14:13]} 12. Bh6 {[%emt 0:05:55]} Re8 {[%emt 0:02:16]} 13. Nxd5 {[%emt 0:03:40]} Qxd5 {[%emt 0:10:26]} 14. Be4 {[%emt 0:00:07]} Qh5 {[%emt 0:16:40]} 15. Be3 {[%emt 0:05:58]} Qb5 {[%emt 0:16:36]} 16. Qe2 {[%emt 0:04:53]} Qxe2 {[%emt 0:06:22]} 17. Rxe2 {[%emt 0:00:22]} Bd7 {[%emt 0:02:07]} 18. Rd2 {[%emt 0:03:28]} Na5 {[%emt 0:06:18]} 19. Rc2 {[%emt 0:06:12]} Bc6 {[%emt 0:05:00]} 20. Nd2 {[%emt 0:00:17]} Red8 {[%emt 0:08:45]} 21. b4 {[%emt 0:05:55]} Nb3 {[%emt 0:00:08]} 22. Nxb3 {[%emt 0:02:20]} Bxe4 {[%emt 0:00:02]} 23. Rc7 {[%emt 0:00:13]} Bd5 {[%emt 0:01:15]} 24. Na5 {[%emt 0:02:07]} e5 {[%emt 0:09:07]} 25. Nxb7 {[%emt 0:02:16]} exd4 {[%emt 0:00:05]} 26. Bf4 {[%emt 0:00:53]} d3 {[%emt 0:01:01]} 27. Rd1 {[%emt 0:00:42]} Bb3 {[%emt 0:00:38]} 28. Rd2 {[%emt 0:01:03]} Re8 {[%emt 0:00:35]} 29. h3 {[%emt 0:00:37]} Bc2 {[%emt 0:00:09]} 30. Nd6 {[%emt 0:00:53]} Re2 {[%emt 0:00:55]} 31. Nxf7 {[%emt 0:01:29]} Rxd2 {[%emt 0:00:19]} 32. Bxd2 {[%emt 0:00:16]} Bb3 {[%emt 0:00:32]} 33. Nh6+ {[%emt 0:00:34]} Kf8 {[%emt 0:00:05]} 34. Ng4 {[%emt 0:01:11]} Bg7 {[%emt 0:00:41]} 35. Rd7 {[%emt 0:00:41]} Bc2 {[%emt 0:00:31]} 36. b5 {[%emt 0:00:49]} Re8 {[%emt 0:00:50]} 37. Rxa7 {[%emt 0:00:53]} Re2 {[%emt 0:00:21]} 38. Bb4+ {[%emt 0:00:36]} Kg8 {[%emt 0:00:02]} 39. b6 {[%emt 0:00:18]} Bd4 {[%emt 0:01:08]} 40. Ra8+ {[%emt 0:00:00]} Kg7 {[%emt 0:00:00]} 41. b7 {[%emt 0:00:27]} h5 {[%emt 0:04:48]} 42. b8=Q {[%emt 0:00:35]} hxg4 {[%emt 0:00:04]} 43. Qh8+ {[%emt 0:00:25]} 1-0

[Event "5th EKA IIFL Investment 2019"]
[Site "Mumbai"]
[Date "2020.01.04"]
[Round "6.44"]
[White "Rathnakaran, K.."]
[Black "Anadkat Kartavya"]
[Result "1-0"]
[ECO "C42"]
[WhiteElo "2322"]
[BlackElo "2023"]
[Annotator "NA"]
[PlyCount "85"]
[EventDate "2019.12.30"]
[EventType "swiss"]
[EventCountry "IND"]
[SourceTitle "playchess.com"]
[Source "ChessBase"]
[SourceQuality "1"]
[TimeControl "40/5400+30:1800+30"]

1. e4 e5 2. Nf3 Nf6 3. d3 Nc6 4. c4 Bc5 5. Be2 d6 6. a3 Bg4 7. Nc3 h6 8. Rb1 Bxf3 9. Bxf3 a5 10. g3 Nd4 11. Bg2 Qd7 12. h3 c6 13. b4 axb4 14. axb4 Bb6 15. O-O O-O 16. Kh1 Nh7 17. f4 exf4 18. gxf4 f5 19. Be3 Qd8 20. c5 dxc5 21. bxc5 Bxc5 22. Rxb7 Qa5 23. Bxd4 Bxd4 24. Qb3+ Kh8 25. Ne2 Rad8 26. e5 Qd2 27. Bf3 Bc5 28. d4 Rxd4 29. Nxd4 Qxd4 30. Bxc6 Qd8 31. Qd5 Qxd5+ 32. Bxd5 Rd8 33. Bf7 g5 34. Bg6 Nf8 35. Bxf5 gxf4 36. Rxf4 Re8 37. Re4 Kg8 38. e6 Re7 39. Rg4+ Kh8 40. Rb5 Ba3 41. Rb1 Rg7 42. Rxg7 Kxg7 43. Rb7+ 1-0

[Event "5th EKA IIFL Investment 2019"]
[Site "Mumbai"]
[Date "2020.01.04"]
[Round "6.45"]
[White "Thanki, Hemal Karsanji"]
[Black "Vasquez Schroeder, Rodrigo"]
[Result "1/2-1/2"]
[ECO "C00"]
[WhiteElo "2164"]
[BlackElo "2487"]
[Annotator "ChessBase"]
[PlyCount "118"]
[EventDate "2019.12.30"]
[EventType "swiss"]
[EventCountry "IND"]
[SourceTitle "playchess.com"]
[Source "ChessBase"]
[SourceQuality "1"]
[TimeControl "40/5400+30:1800+30"]

1. e4 {[%emt 0:02:35]} e6 {[%emt 0:00:16]} 2. d4 {[%emt 0:00:20]} d5 {[%emt 0:00:06]} 3. Bd3 {[%emt 0:00:05]} dxe4 {[%emt 0:01:01]} 4. Bxe4 {[%emt 0:00:03]} Nf6 {[%emt 0:00:05]} 5. Bf3 {[%emt 0:00:04]} c5 {[%emt 0:00:30]} 6. Ne2 {[%emt 0:00:34]} Nc6 {[%emt 0:02:49]} 7. Be3 {[%emt 0:01:15]} cxd4 {[%emt 0:01:26]} 8. Nxd4 {[%emt 0:00:06]} Ne5 {[%emt 0:00:30]} 9. Nb5 {[%emt 0:06:55]} Bd7 {[%emt 0:01:05]} 10. Nd6+ {[%emt 0:11:44]} Bxd6 {[%emt 0:00:06]} 11. Qxd6 {[%emt 0:00:03]} Nxf3+ {[%emt 0:01:05]} 12. gxf3 {[%emt 0:00:04]} Bc6 {[%emt 0:00:20]} 13. Qxd8+ {[%emt 0:00:19]} Rxd8 {[%emt 0:00:59]} 14. Nd2 {[%emt 0:03:56]} Nd5 {[%emt 0:05:00]} 15. Bxa7 {[%emt 0:17:31]} Nb4 {[%emt 0:01:00]} 16. O-O-O {[%emt 0:05:09]} Nxa2+ {[%emt 0:01:31]} 17. Kb1 {[%emt 0:00:05]} Nb4 {[%emt 0:00:04]} 18. Ne4 {[%emt 0:11:15]} f5 {[%emt 0:23:35]} 19. Nd6+ {[%emt 0:16:15]} Ke7 {[%emt 0:00:23]} 20. Bc5 {[%emt 0:00:30]} Na6 {[%emt 0:00:48]} 21. Nxf5+ {[%emt 0:02:24]} Kf7 {[%emt 0:00:21]} 22. Nd6+ {[%emt 0:06:37]} Kf6 {[%emt 0:02:00]} 23. Bb6 {[%emt 0:01:42]} Rd7 {[%emt 0:03:14]} 24. Ne4+ {[%emt 0:02:49]} Kf5 {[%emt 0:01:47]} 25. Rxd7 {[%emt 0:00:06]} Bxd7 {[%emt 0:00:06]} 26. Rg1 {[%emt 0:00:12]} g6 {[%emt 0:00:48]} 27. Nd6+ {[%emt 0:06:51]} Kf6 {[%emt 0:01:51]} 28. Bd4+ {[%emt 0:01:14]} e5 {[%emt 0:00:04]} 29. Bc3 {[%emt 0:00:28]} Ke6 {[%emt 0:01:41]} 30. Re1 {[%emt 0:00:06]} Rf8 {[%emt 0:00:20]} 31. Bxe5 {[%emt 0:00:35]} Rxf3 {[%emt 0:00:10]} 32. Nxb7 {[%emt 0:00:52]} Kf5 {[%emt 0:00:56]} 33. Bg3 {[%emt 0:00:35]} Kg5 {[%emt 0:00:24]} 34. Nd6 {[%emt 0:00:42]} h5 {[%emt 0:01:22]} 35. Re4 {[%emt 0:00:46]} Kf6 {[%emt 0:00:45]} 36. h4 {[%emt 0:01:38]} Nc5 {[%emt 0:00:27]} 37. Rc4 {[%emt 0:00:46]} Ne6 {[%emt 0:00:37]} 38. Ne4+ {[%emt 0:00:05]} Ke7 {[%emt 0:00:12]} 39. Bd6+ {[%emt 0:00:34]} Kd8 {[%emt 0:00:08]} 40. Be5 {[%emt 0:00:00]} Bb5 {[%emt 0:00:00]} 41. Rb4 {[%emt 0:04:57]} Bc6 {[%emt 0:00:34]} 42. Bg3 {[%emt 0:01:15]} Rf5 {[%emt 0:00:33]} 43. Nc3 {[%emt 0:04:17]} Kd7 {[%emt 0:00:14]} 44. Rb8 {[%emt 0:00:46]} Rc5 {[%emt 0:02:06]} 45. Rg8 {[%emt 0:00:29]} g5 {[%emt 0:00:05]} 46. Kc1 {[%emt 0:07:27]} gxh4 {[%emt 0:04:28]} 47. Bxh4 {[%emt 0:00:01]} Rc4 {[%emt 0:00:23]} 48. Bg3 {[%emt 0:01:23]} h4 {[%emt 0:00:16]} 49. Be5 {[%emt 0:01:12]} h3 {[%emt 0:00:37]} 50. Rh8 {[%emt 0:00:10]} Bg2 {[%emt 0:00:16]} 51. Rh7+ {[%emt 0:03:09]} Kc6 {[%emt 0:03:29]} 52. Rh6 {[%emt 0:00:03]} Kd7 {[%emt 0:00:07]} 53. Bg3 {[%emt 0:05:14]} Nd4 {[%emt 0:09:42]} 54. Kd1 {[%emt 0:06:31]} Nf5 {[%emt 0:01:17]} 55. Rh7+ {[%emt 0:00:22]} Ke6 {[%emt 0:00:33]} 56. Bh2 {[%emt 0:00:24]} Nd4 {[%emt 0:03:29]} 57. Bg3 {[%emt 0:00:40]} Nf5 {[%emt 0:00:28]} 58. Bh2 {[%emt 0:00:02]} Nd4 {[%emt 0:00:23]} 59. Rh6+ {[%emt 0:00:57]} Kf7 {[%emt 0:00:57]} 1/2-1/2

[Event "5th EKA IIFL Investment 2019"]
[Site "Mumbai"]
[Date "2020.01.04"]
[Round "6.46"]
[White "Samant Aditya S"]
[Black "Gandhi, Anish"]
[Result "1/2-1/2"]
[ECO "B90"]
[WhiteElo "2296"]
[BlackElo "2168"]
[Annotator "ChessBase"]
[PlyCount "111"]
[EventDate "2019.12.30"]
[EventType "swiss"]
[EventCountry "IND"]
[SourceTitle "playchess.com"]
[Source "ChessBase"]
[SourceQuality "1"]
[TimeControl "40/5400+30:1800+30"]

1. e4 {[%emt 0:00:00]} c5 {[%emt 0:00:00]} 2. Nf3 {[%emt 0:00:00]} d6 {[%emt 0:00:00]} 3. d4 {[%emt 0:00:00]} cxd4 {[%emt 0:00:00]} 4. Nxd4 {[%emt 0:00:00]} Nf6 {[%emt 0:00:00]} 5. Nc3 {[%emt 0:00:00]} a6 {[%emt 0:00:00]} 6. Be3 {[%emt 0:00:01]} Ng4 {[%emt 0:00:14]} 7. Bg5 {[%emt 0:00:16]} h6 {[%emt 0:00:35]} 8. Bh4 {[%emt 0:00:08]} g5 {[%emt 0:00:16]} 9. Bg3 {[%emt 0:00:07]} Bg7 {[%emt 0:00:30]} 10. Qd2 {[%emt 0:02:32]} Nc6 {[%emt 0:04:01]} 11. Nb3 {[%emt 0:00:32]} Be6 {[%emt 0:01:43]} 12. h4 {[%emt 0:01:59]} gxh4 {[%emt 0:13:20]} 13. Bxh4 {[%emt 0:00:20]} Rc8 {[%emt 0:05:14]} 14. f3 {[%emt 0:10:28]} Nge5 {[%emt 0:00:29]} 15. Bf2 {[%emt 0:03:25]} b5 {[%emt 0:04:57]} 16. Nd5 {[%emt 0:17:48]} Nc4 {[%emt 0:06:27]} 17. Bxc4 {[%emt 0:00:59]} bxc4 {[%emt 0:00:07]} 18. Nd4 {[%emt 0:02:27]} Bxd5 {[%emt 0:01:55]} 19. exd5 {[%emt 0:00:29]} Ne5 {[%emt 0:00:07]} 20. O-O {[%emt 0:13:56]} Qd7 {[%emt 0:02:49]} 21. Rae1 {[%emt 0:03:21]} Rc5 {[%emt 0:05:27]} 22. Ne2 {[%emt 0:07:55]} Rb5 {[%emt 0:03:16]} 23. Nc3 {[%emt 0:03:42]} Rxb2 {[%emt 0:05:47]} 24. Bd4 {[%emt 0:05:00]} Rg8 {[%emt 0:05:02]} 25. Ne4 {[%emt 0:02:52]} Rb5 {[%emt 0:01:38]} 26. Nc3 {[%emt 0:02:17]} Rb8 {[%emt 0:04:57]} 27. Re2 {[%emt 0:04:22]} Qf5 {[%emt 0:05:56]} 28. Qe3 {[%emt 0:05:21]} Rb7 {[%emt 0:04:23]} 29. Ne4 {[%emt 0:02:05]} Kf8 {[%emt 0:01:47]} 30. Nxd6 {[%emt 0:07:53]} exd6 {[%emt 0:03:01]} 31. f4 {[%emt 0:00:05]} Nf3+ {[%emt 0:04:13]} 32. Rxf3 {[%emt 0:00:09]} Bxd4 {[%emt 0:00:04]} 33. Qxd4 {[%emt 0:00:05]} Qh5 {[%emt 0:00:10]} 34. Rfe3 {[%emt 0:05:31]} Rb1+ {[%emt 0:01:13]} 35. Re1 {[%emt 0:00:05]} Rxe1+ {[%emt 0:00:31]} 36. Rxe1 {[%emt 0:00:04]} Qf3 {[%emt 0:00:58]} 37. Qd2 {[%emt 0:00:20]} c3 {[%emt 0:00:41]} 38. Qe2 {[%emt 0:01:45]} Qxd5 {[%emt 0:00:04]} 39. Qe7+ {[%emt 0:00:27]} Kg7 {[%emt 0:00:01]} 40. Qe4 {[%emt 0:00:00]} Qxe4 {[%emt 0:00:00]} 41. Rxe4 {[%emt 0:00:45]} Rb8 {[%emt 0:14:02]} 42. Rc4 {[%emt 0:00:37]} Rb2 {[%emt 0:01:42]} 43. Rxc3 {[%emt 0:00:08]} Rxa2 {[%emt 0:00:08]} 44. Rd3 {[%emt 0:02:43]} Rxc2 {[%emt 0:00:31]} 45. Rxd6 {[%emt 0:00:04]} a5 {[%emt 0:00:52]} 46. Ra6 {[%emt 0:00:05]} Ra2 {[%emt 0:00:03]} 47. Kh2 {[%emt 0:00:40]} a4 {[%emt 0:03:03]} 48. Kh3 {[%emt 0:01:57]} a3 {[%emt 0:09:27]} 49. g4 {[%emt 0:12:05]} Ra1 {[%emt 0:02:41]} 50. g5 {[%emt 0:00:48]} hxg5 {[%emt 0:09:24]} 51. fxg5 {[%emt 0:00:10]} Rg1 {[%emt 0:01:57]} 52. Kh4 {[%emt 0:03:16]} Rh1+ {[%emt 0:00:11]} 53. Kg3 {[%emt 0:00:08]} Rg1+ {[%emt 0:00:09]} 54. Kh4 {[%emt 0:00:22]} Ra1 {[%emt 0:00:05]} 55. Kh3 {[%emt 0:00:09]} Rg1 {[%emt 0:00:07]} 56. Kh4 {[%emt 0:00:07]} 1/2-1/2